bitfinex-derivatives/quotes_ETHF0:USTF0_20241105
["timestamp","ask_amount","ask_price","bid_price","bid_amount"]
[1730822153124,40.8,2441.1,2440.6,5.1028953]
[1730822153428,40.8,2441.1,2440.6,4.36338463]
[1730822153623,3.2078,2441.2,2440.9,3.19778463]
[1730822153824,3.2078,2441.2,2441.1,0.40971]
[1730822154721,40.8,2441.3,2441.1,0.40969]
[1730822154928,40.8,2441.3,2441.2,0.40969]
[1730822155522,1.1808,2441.4,2441.0,1.1443]
[1730822155727,3.2078,2441.5,2441.4,0.40966]
[1730822155929,3.2078,2441.5,2441.3,0.40967]
[1730822156231,40.8,2441.4,2441.3,0.40967]
[1730822156427,3.2078,2441.9,2441.5,0.40964]
[1730822156632,4.4183,2441.9,2441.4,3.19778463]
[1730822156930,5.85371019,2442.2,2442.1,0.40954]
[1730822157239,3.2078,2442.2,2442.1,0.40954]
[1730822157434,44.0078,2442.2,2441.9,0.40956]
[1730822157624,44.0078,2442.2,2441.7,3.19778463]
[1730822157826,44.0078,2442.2,2441.8,1.1041]
[1730822158126,3.2078,2442.2,2442.1,0.40954]
[1730822159335,3.2078,2442.2,2442.0,0.40955]
[1730822160227,3.2078,2442.2,2441.6,4.3513]
[1730822160436,3.2078,2442.2,2441.6,4.76091]
[1730822160437,0.40956,2442.0,2441.6,4.76091]
[1730822160627,3.2078,2441.9,2441.4,4.3093]
[1730822160825,0.40966,2441.4,2441.0,1.48116981]
[1730822161031,1.1786,2441.3,2441.0,1.48116981]
[1730822161236,1.58828,2441.3,2441.0,1.07144981]
[1730822161530,1.1786,2441.3,2440.9,3.93368212]
[1730822161731,1.1786,2441.3,2441.0,0.40972]
[1730822161923,1.1786,2441.3,2440.9,3.93368212]
[1730822162325,1.1786,2441.3,2440.8,2.2231]
[1730822162626,3.2078,2440.9,2440.3,4.81497471]
[1730822163137,0.40976,2440.8,2440.3,4.81497471]
[1730822163345,1.1352,2440.7,2440.3,4.81497471]
[1730822163529,1.1352,2440.7,2440.3,0.40983]
[1730822163832,3.2078,2440.4,2440.2,1.1244]
[1730822164232,3.2078,2440.4,2439.8,6.09968212]
[1730822164233,3.2078,2440.4,2439.8,4.34359212]
[1730822164538,0.40985,2440.3,2439.7,3.61773]
[1730822164733,3.2078,2440.4,2439.8,0.40992]
[1730822164927,0.40985,2440.3,2439.7,3.61773]
[1730822165126,3.61763,2440.4,2439.7,3.2078]
[1730822165329,3.2078,2440.4,2440.0,0.40988]
[1730822165932,3.2078,2440.4,2439.7,7.14148212]
[1730822166133,1.186,2440.6,2440.3,0.40984]
[1730822166531,1.186,2440.6,2440.2,0.40985]
[1730822166730,1.186,2440.6,2440.0,3.93368212]
[1730822166938,3.61762,2440.5,2440.0,4.34356212]
[1730822167136,0.40983,2440.4,2440.0,0.40988]
[1730822167344,3.2078,2440.2,2439.8,0.40991]
[1730822167542,3.2078,2440.2,2439.7,3.93368212]
[1730822167841,3.2078,2440.2,2439.7,0.40993]
[1730822168034,3.2078,2440.2,2439.6,1.28781876]
[1730822168439,3.2078,2440.2,2440.0,0.40988]
[1730822168637,3.2078,2440.2,2440.1,0.40988]
[1730822168840,3.2078,2440.2,2440.1,4.50828]
[1730822169338,3.2078,2440.5,2440.2,0.40986]
[1730822169546,3.2078,2440.5,2440.0,3.93368212]
[1730822170037,3.2078,2440.5,2440.2,0.40984]
[1730822170233,3.2078,2440.5,2440.4,0.40983]
[1730822170433,41.20976,2440.8,2440.0,7.14148212]
[1730822170434,3.2078,2440.8,2440.3,3.93368212]
[1730822170734,3.2078,2440.8,2440.1,1.1325]
[1730822170735,3.2078,2440.8,2440.1,2.2761]
[1730822170942,3.2078,2440.8,2440.1,1.1325]
[1730822170943,1.1046,2440.7,2440.1,1.1325]
[1730822171138,0.4098,2440.6,2440.2,0.40985]
[1730822171442,2.66358,2440.7,2440.2,0.40986]
[1730822171646,0.4098,2440.6,2440.2,0.40986]
[1730822171841,40.8,2440.5,2440.2,0.40986]
[1730822172037,40.8,2440.5,2440.1,1.1325]
[1730822172038,40.8,2440.5,2440.3,0.40983]
[1730822172342,41.20981,2440.5,2440.1,1.54237]
[1730822172641,41.20981,2440.5,2440.1,0.40987]
[1730822172838,44.41761,2440.5,2440.1,0.40987]
[1730822173743,44.0078,2440.5,2440.2,0.40985]
[1730822174038,0.40979,2440.6,2440.2,0.40985]
[1730822174242,2.2538,2440.7,2440.4,0.40982]
[1730822174446,2.2538,2440.7,2440.0,7.14148212]
[1730822174638,43.0538,2440.7,2440.4,0.40982]
[1730822174935,2.2538,2440.7,2440.4,0.40982]
[1730822175142,3.2078,2440.8,2440.3,3.93368212]
[1730822175338,3.2078,2441.1,2440.3,7.14148212]
[1730822175540,3.2078,2441.1,2440.9,0.40973]
[1730822175933,3.2078,2441.1,2440.8,0.40975]
[1730822176440,3.2078,2441.1,2440.9,0.40974]
[1730822176641,3.2078,2441.1,2440.6,3.93368212]
[1730822176844,3.2078,2441.1,2440.9,0.40973]
[1730822177029,3.2078,2441.1,2441.0,0.40972]
[1730822177435,43.0068,2441.2,2440.6,3.93368212]
[1730822177634,41.8988,2441.2,2441.1,0.40971]
[1730822177948,3.2078,2441.4,2440.7,3.2078]
[1730822177949,3.2078,2441.4,2440.9,3.93368212]
[1730822178147,3.2078,2441.4,2441.0,0.40971]
[1730822178440,41.20968,2441.3,2441.0,0.40971]
[1730822178941,40.8,2441.3,2441.0,0.40971]
[1730822179139,40.8,2441.3,2441.2,0.40969]
[1730822179742,40.8,2441.3,2441.1,0.4097]
[1730822179945,41.20968,2441.3,2441.0,0.40972]
[1730822180248,0.40973,2441.0,2440.6,4.34346212]
[1730822180442,0.40975,2440.9,2440.6,0.40978]
[1730822180742,1.1041,2440.9,2440.5,0.40981]
[1730822180948,1.1041,2440.9,2440.6,3.93368212]
[1730822181144,3.2078,2441.1,2441.0,0.40972]
[1730822181345,40.8,2441.3,2441.1,0.4097]
[1730822182039,3.2078,2441.5,2441.1,0.4097]
[1730822182340,0.40966,2441.4,2441.1,0.4097]
[1730822182541,41.20966,2441.4,2441.1,0.4097]
[1730822182849,40.8,2441.4,2440.8,3.2078]
[1730822183148,40.8,2441.4,2441.1,0.4097]
[1730822183349,41.20966,2441.4,2441.1,0.4097]
[1730822183554,40.8,2441.4,2440.8,3.2078]
[1730822183846,40.8,2441.4,2441.2,0.40968]
[1730822184050,3.61745,2441.5,2441.2,0.40968]
[1730822184438,40.8,2441.4,2441.2,0.40968]
[1730822184635,3.2078,2441.5,2441.0,1.1976]
[1730822184839,3.2078,2441.5,2441.4,0.40966]
[1730822185443,2.64591019,2441.9,2441.6,0.40961]
[1730822185444,3.2078,2441.8,2441.6,0.40961]
[1730822185639,3.2078,2441.8,2441.4,0.40965]
[1730822185640,0.40962,2441.7,2441.4,0.40965]
[1730822185845,3.2078,2441.8,2441.6,0.40962]
[1730822186146,3.2078,2441.8,2441.6,0.40961]
[1730822186342,3.2078,2441.8,2441.7,0.40961]
[1730822187137,3.2078,2442.6,2442.0,0.40956]
[1730822187350,5.543,2442.6,2442.4,0.40948]
[1730822187550,5.543,2442.6,2442.5,0.40947]
[1730822187851,4.3367,2442.6,2442.5,0.40947]
[1730822188349,3.2078,2442.6,2442.0,3.93368212]
[1730822188650,3.2078,2442.6,2442.2,0.40952]
[1730822189546,3.2078,2442.6,2442.0,3.93368212]
[1730822189753,3.2078,2442.6,2442.3,0.4095]
[1730822190541,3.2078,2442.6,2442.0,4.0952868]
[1730822190740,3.2078,2442.6,2442.2,0.40952]
[1730822190945,4.301,2442.6,2442.2,0.40952]
[1730822191143,4.301,2442.6,2442.0,4.0952868]
[1730822191347,4.301,2442.6,2442.3,0.4095]
[1730822191546,3.2078,2442.6,2442.3,3.93368212]
[1730822191746,3.2078,2442.6,2442.4,0.40948]
[1730822192053,3.61726,2442.6,2442.0,4.0952868]
[1730822192239,0.40948,2442.5,2442.1,0.40953]
[1730822192439,4.3367,2442.7,2442.0,3.93368212]
[1730822192639,4.3367,2442.7,2441.9,3.2078]
[1730822192841,0.40947,2442.6,2442.2,0.40952]
[1730822193043,0.40948,2442.5,2442.2,0.40952]
[1730822193348,3.2078,2442.6,2441.9,0.40956]
[1730822193542,3.2078,2442.3,2441.8,1.1289]
[1730822193950,1.0678,2442.4,2442.1,0.40953]
[1730822194552,1.47729,2442.4,2441.8,4.3367]
[1730822194752,1.47729,2442.4,2441.8,1.1289]
[1730822194753,0.40951,2442.3,2441.8,1.1289]
[1730822194943,0.40951,2442.3,2441.9,0.40957]
[1730822195147,3.2078,2442.3,2441.9,0.40957]
[1730822195346,0.40953,2442.2,2441.7,3.93368212]
[1730822195554,1.51944,2442.1,2441.7,0.40959]
[1730822195747,3.2078,2442.3,2441.7,3.93368212]
[1730822195947,3.2078,2442.3,2442.0,0.40954]
[1730822196850,3.2078,2442.3,2442.2,0.40952]
[1730822197150,3.2078,2442.6,2442.5,0.40947]
[1730822197342,3.2078,2442.6,2442.5,4.34315212]
[1730822197544,3.2078,2442.6,2442.5,8.43755212]
[1730822197941,3.2078,2442.6,2442.5,4.34315212]
[1730822198142,3.2078,2442.6,2442.4,0.40948]
[1730822198348,3.2078,2442.6,2442.4,0.40947]
[1730822198543,44.0078,2442.6,2442.4,0.40947]
[1730822198964,44.0078,2442.6,2442.0,3.93368212]
[1730822198965,4.0944,2442.5,2442.0,3.93368212]
[1730822199253,0.40948,2442.5,2442.1,0.40953]
[1730822199553,1.0942,2442.5,2442.0,3.93368212]
[1730822199755,1.50368,2442.5,2442.1,0.40953]
[1730822199954,1.0942,2442.5,2442.3,4.34318212]
[1730822200149,1.0942,2442.5,2442.4,0.40949]
[1730822200349,44.0078,2442.6,2442.4,0.40949]
[1730822200653,44.0078,2442.6,2442.2,1.1577]
[1730822200857,1.0942,2442.5,2442.2,1.1577]
[1730822201055,1.50367,2442.5,2442.2,1.1577]
[1730822201357,1.50367,2442.5,2442.2,1.56722]
[1730822201655,0.40949,2442.4,2442.0,4.34323212]
[1730822201951,3.2078,2442.3,2442.0,4.34323212]
[1730822202155,3.61731,2442.3,2442.0,4.34323212]
[1730822202347,3.2078,2442.3,2442.0,3.93368212]
[1730822202548,3.2078,2442.3,2442.0,4.34323212]
[1730822203152,1.0942,2442.5,2442.2,0.40952]
[1730822203354,1.0942,2442.5,2442.1,0.40954]
[1730822203554,1.50368,2442.5,2442.2,0.40952]
[1730822203856,1.50368,2442.5,2442.0,3.93368212]
[1730822203857,1.0942,2442.5,2442.0,3.93368212]
[1730822204158,0.4095,2442.4,2442.0,3.93368212]
[1730822204460,40.8,2442.6,2442.3,3.93368212]
[1730822204648,40.8,2442.6,2442.3,4.34318212]
[1730822204851,43.0615,2442.6,2442.3,4.34318212]
[1730822205050,43.0615,2442.6,2442.3,3.93368212]
[1730822205352,43.0615,2442.6,2442.3,4.34318212]
[1730822205560,43.0615,2442.6,2442.3,0.4095]
[1730822207056,43.47096,2442.6,2442.3,0.4095]
[1730822207252,3.2078,2442.4,2442.1,4.34321212]
[1730822207449,43.0615,2442.6,2442.1,3.93368212]
[1730822207450,40.8,2442.6,2442.1,3.93368212]
[1730822207649,0.40948,2442.5,2442.2,0.40952]
[1730822207854,1.1372,2442.4,2442.2,0.40952]
[1730822208562,1.1372,2442.4,2442.3,0.40951]
[1730822209058,1.1372,2442.4,2442.1,3.93368212]
[1730822209059,1.1372,2442.4,2442.2,0.40951]
[1730822209271,40.8,2442.6,2442.3,3.93368212]
[1730822209563,3.2078,2442.7,2442.3,6.20008212]
[1730822209760,2.2141,2442.6,2442.3,6.20008212]
[1730822209965,40.8,2442.5,2442.4,0.40949]
[1730822210261,2.2141,2442.6,2442.3,6.20008212]
[1730822210465,3.2078,2442.7,2442.5,0.40946]
[1730822210861,44.0078,2442.7,2442.3,7.29588212]
[1730822211356,3.2078,2442.7,2442.5,0.40946]
[1730822211563,3.2078,2443.0,2442.8,0.40942]
[1730822212456,3.2078,2443.0,2442.7,0.40943]
[1730822212650,3.61719,2443.0,2442.7,0.40943]
[1730822213459,3.2078,2443.0,2442.6,3.93368212]
[1730822213761,3.2078,2443.0,2442.9,0.40941]
[1730822214364,3.2078,2443.0,2442.9,4.34309212]
[1730822214662,3.2078,2443.0,2442.9,0.40941]
[1730822214857,3.2078,2443.0,2442.7,3.93368212]
[1730822215259,3.2078,2443.0,2442.7,0.40942]
[1730822215563,3.2078,2443.0,2442.8,0.40942]
[1730822215953,3.2078,2443.0,2442.3,3.52210469]
[1730822215954,3.2078,2443.0,2442.9,0.40941]
[1730822216155,3.2078,2443.0,2442.9,3.60477773]
[1730822216459,3.2078,2443.0,2442.9,7.69837773]
[1730822218165,3.2078,2443.0,2442.7,3.19536773]
[1730822218466,0.40941,2442.9,2442.7,3.19536773]
[1730822218658,0.40942,2442.8,2442.6,0.40946]
[1730822219065,3.2078,2442.7,2442.4,5.35136773]
[1730822219266,3.2078,2442.7,2442.5,0.40947]
[1730822219864,3.2078,2442.7,2442.6,0.40946]
[1730822220261,3.2078,2442.7,2442.4,3.60484773]
[1730822220262,3.61725,2442.7,2442.4,3.60484773]
[1730822220459,0.40946,2442.6,2442.4,3.19536773]
[1730822220662,3.2078,2442.7,2442.3,2.2664]
[1730822220863,3.2078,2442.7,2442.2,3.19536773]
[1730822221165,3.2078,2442.7,2441.6,2.09271503]
[1730822221166,0.40955,2442.1,2441.7,3.19536773]
[1730822221361,2.2386,2442.0,2441.7,3.19536773]
[1730822221560,2.2386,2442.0,2441.8,0.40958]
[1730822221766,2.2386,2442.0,2441.9,0.40957]
[1730822221970,2.2386,2442.0,2441.7,3.19536773]
[1730822222161,43.0386,2442.0,2441.7,3.19536773]
[1730822222362,43.0386,2442.0,2441.7,3.60496773]
[1730822222564,43.0386,2442.0,2441.7,3.19536773]
[1730822222959,43.0386,2442.0,2441.7,3.60495773]
[1730822223176,43.0386,2442.0,2441.7,3.19536773]
[1730822223376,43.0386,2442.0,2441.8,0.40959]
[1730822223567,43.0386,2442.0,2441.7,3.93415647]
[1730822223874,43.0386,2442.0,2441.9,0.40957]
[1730822223875,2.2386,2442.0,2441.9,0.40957]
[1730822224373,2.2386,2442.0,2441.8,0.40958]
[1730822224867,2.64816,2442.0,2441.7,0.4096]
[1730822225072,2.2386,2442.0,2441.7,0.40959]
[1730822225974,2.2386,2442.0,2441.8,0.40959]
[1730822226172,2.2386,2442.0,2441.9,0.40957]
[1730822226373,2.2386,2442.0,2441.8,0.40958]
[1730822226563,2.2386,2442.0,2441.7,3.93415647]
[1730822226564,2.2386,2442.0,2441.9,0.40957]
[1730822226970,2.2386,2442.0,2441.7,3.93415647]
[1730822227172,2.2386,2442.0,2441.8,0.40958]
[1730822227773,3.2078,2442.1,2442.0,0.40956]
[1730822227974,3.2078,2442.1,2442.0,4.34371647]
[1730822228178,5.4222,2442.4,2442.2,0.40952]
[1730822228981,0.40951,2442.3,2442.1,1.54753]
[1730822229182,5.4222,2442.4,2442.1,1.138]
[1730822229474,5.4222,2442.4,2442.2,0.40952]
[1730822229679,5.83169,2442.4,2442.2,0.40952]
[1730822229982,5.83169,2442.4,2442.1,1.54753]
[1730822231080,0.40953,2442.2,2442.0,0.40955]
[1730822231278,3.2078,2442.1,2441.5,12.6382215]
[1730822231472,0.40958,2441.9,2441.7,0.40961]
[1730822232177,4.3556,2442.1,2441.5,7.25965647]
[1730822232374,5.4357,2441.8,2441.4,1.48675]
[1730822232575,3.61744,2441.5,2441.2,5.42103647]
[1730822232778,3.2078,2441.5,2441.0,1.57582]
[1730822232983,0.40968,2441.3,2440.9,4.34388647]
[1730822233481,40.8,2441.2,2440.9,4.34388647]
[1730822233876,40.8,2441.2,2441.0,0.40972]
[1730822234076,40.8,2441.2,2440.9,3.93415647]
[1730822234277,40.8,2441.2,2441.0,0.40972]
[1730822235679,40.8,2441.2,2440.9,4.34388647]
[1730822235981,40.8,2441.2,2441.0,0.40972]
[1730822236281,40.8,2441.2,2440.9,3.93415647]
[1730822236469,40.8,2441.2,2441.0,0.40971]
[1730822236672,40.8,2441.2,2440.9,3.93415647]
[1730822236879,40.8,2441.2,2440.9,4.34388647]
[1730822237088,1.55378,2441.3,2440.9,4.34388647]
[1730822237271,1.1441,2441.3,2441.0,0.40971]
[1730822237475,40.8,2441.3,2441.2,3.93415647]
[1730822238275,3.2078,2441.5,2440.9,0.40973]
[1730822238476,3.2078,2441.5,2440.9,4.34388647]
[1730822238777,3.2078,2441.2,2440.1,3.93415647]
[1730822238979,3.2078,2440.7,2440.0,2.3323]
[1730822239279,3.2078,2440.7,2439.9,3.2078]
[1730822239280,2.2001,2440.6,2439.9,3.2078]
[1730822239475,2.2001,2440.6,2439.8,4.34407647]
[1730822239476,0.40989,2440.1,2439.6,0.40995]
[1730822239677,3.2078,2439.9,2439.5,9.47425647]
[1730822239874,3.2078,2439.9,2439.5,3.2078]
[1730822240072,1.0708,2439.8,2439.6,0.40995]
[1730822240276,1.0708,2439.8,2439.5,3.2078]
[1730822240569,1.0708,2439.8,2439.5,3.61777]
[1730822240975,1.0708,2439.8,2439.6,3.93415647]
[1730822241174,44.0078,2439.9,2439.6,3.93415647]
[1730822241380,44.0078,2439.9,2439.7,0.40993]
[1730822241577,44.0078,2439.9,2439.6,4.34410647]
[1730822242078,44.0078,2439.9,2439.7,0.40994]
[1730822242284,44.0078,2439.9,2439.5,3.2078]
[1730822242285,40.8,2439.9,2439.8,4.34408647]
[1730822242477,3.61765,2440.3,2439.8,4.34408647]
[1730822242677,3.2078,2440.3,2439.9,0.40991]
[1730822243188,3.2078,2440.3,2439.8,4.34407647]
[1730822243385,3.2078,2440.3,2440.0,0.40988]
[1730822243580,3.2078,2440.3,2440.1,0.40987]
[1730822243786,3.2078,2440.3,2439.9,0.4099]
[1730822243980,3.2078,2440.3,2439.8,3.93415647]
[1730822244384,3.2078,2440.3,2440.2,0.40986]
[1730822244889,3.2078,2440.3,2440.1,4.34402647]
[1730822245182,3.2078,2440.3,2439.9,4.3571]
[1730822245183,3.2078,2440.3,2439.9,1.5592]
[1730822245382,3.2078,2440.3,2439.9,1.1493]
[1730822245690,3.61765,2440.3,2439.9,1.1493]
[1730822245875,3.61765,2440.3,2439.8,4.34407647]
[1730822245876,3.2078,2440.3,2439.8,3.93415647]
[1730822246080,0.40987,2440.2,2439.8,3.93415647]
[1730822246485,0.40987,2440.2,2439.8,4.34407647]
[1730822246987,0.40986,2440.2,2439.8,4.34407647]
[1730822247378,41.20986,2440.2,2439.8,4.34407647]
[1730822247584,3.2078,2440.3,2439.8,3.93415647]
[1730822247780,0.40987,2440.2,2439.8,4.34408647]
[1730822248283,44.0078,2440.3,2439.8,3.93415647]
[1730822248479,3.2078,2440.3,2439.8,3.93415647]
[1730822248685,3.2078,2440.3,2440.0,0.40988]
[1730822248882,3.2078,2440.3,2440.0,0.40989]
[1730822249292,3.2078,2440.3,2440.0,3.19873249]
[1730822249793,3.2078,2440.3,2440.2,0.40986]
[1730822251188,1.1372,2440.4,2440.2,0.40986]
[1730822251983,1.1372,2440.4,2440.1,0.40987]
[1730822252182,1.1372,2440.4,2440.2,0.40986]
[1730822252382,1.1372,2440.4,2440.1,0.40986]
[1730822252584,1.1372,2440.4,2440.2,0.40986]
[1730822252788,1.1372,2440.4,2440.3,0.40984]
[1730822252986,1.0623,2440.5,2440.3,0.40984]
[1730822253290,1.47211,2440.5,2440.2,0.40985]
[1730822253488,2.1062,2440.5,2440.0,3.19873249]
[1730822253689,3.2078,2440.3,2439.8,3.19873249]
[1730822253887,3.61765,2440.3,2440.0,0.40989]
[1730822256889,40.8,2440.2,2440.0,0.40989]
[1730822257190,41.20987,2440.2,2439.9,0.4099]
[1730822257587,40.8,2440.2,2439.8,3.19873249]
[1730822258083,3.2078,2440.0,2439.6,4.26153249]
[1730822258285,3.2078,2440.0,2439.8,0.40992]
[1730822258692,4.2288,2440.0,2439.8,0.40992]
[1730822259089,4.2288,2440.0,2439.7,0.40993]
[1730822259390,4.2288,2440.0,2439.6,4.26153249]
[1730822259693,4.2288,2440.0,2439.7,0.40993]
[1730822259889,4.2288,2440.0,2439.8,0.40992]
[1730822260093,3.2078,2440.0,2439.9,0.40991]
[1730822260688,3.2078,2440.0,2439.9,1.42021]
[1730822261687,3.2078,2440.3,2440.2,0.40986]
[1730822262083,3.2078,2440.3,2440.2,4.50746]
[1730822262296,41.8623,2440.5,2440.4,0.40983]
[1730822262297,1.0623,2440.5,2440.4,0.40983]
[1730822262481,3.2078,2441.0,2440.4,7.29633249]
[1730822262686,3.2078,2441.0,2440.8,0.40975]
[1730822262882,3.2078,2441.0,2440.8,3.19873249]
[1730822263086,42.8861,2441.1,2440.8,3.60847249]
[1730822263283,42.8861,2441.1,2440.9,0.40973]
[1730822263490,0.40973,2441.0,2440.8,3.19873249]
[1730822263790,0.40973,2441.0,2440.6,3.60851249]
[1730822263791,3.61753,2441.0,2440.6,3.60851249]
[1730822263987,3.61753,2441.0,2440.7,0.40977]
[1730822264188,3.2078,2441.0,2440.6,3.19873249]
[1730822264386,0.40975,2440.9,2440.6,3.19873249]
[1730822264584,3.2078,2440.7,2440.5,0.4098]
[1730822265289,3.2078,2440.7,2440.6,3.60852249]
[1730822265494,46.0939,2441.1,2440.6,3.19873249]
[1730822265694,0.40977,2440.8,2440.6,3.19873249]
[1730822265883,0.40975,2440.9,2440.6,3.19873249]
[1730822266082,0.40978,2440.7,2440.4,3.60855249]
[1730822266294,3.61757,2440.8,2440.5,0.40981]
[1730822266489,3.2078,2440.8,2440.5,0.40979]
[1730822267085,0.40985,2440.3,2439.9,0.40989]
[1730822267288,0.40985,2440.3,2440.0,0.40988]
[1730822267289,2.0421,2440.2,2440.0,0.40988]
[1730822267498,2.0421,2440.2,2440.1,0.40988]
[1730822267808,3.61759,2440.6,2440.0,7.29713249]
[1730822267991,0.40983,2440.4,2440.0,3.60861249]
[1730822268189,40.8,2440.3,2440.1,0.40987]
[1730822268494,41.20985,2440.3,2440.0,3.60862249]
[1730822268992,40.8,2440.3,2440.0,3.60862249]
[1730822269193,40.8,2440.3,2440.1,0.40987]
[1730822269386,40.8,2440.3,2440.0,3.60861249]
[1730822269592,41.20984,2440.3,2440.0,3.60861249]
[1730822270198,40.8,2440.3,2439.6,3.2078]
[1730822270400,3.2078,2440.0,2439.4,3.19873249]
[1730822270586,3.2078,2440.0,2439.7,0.40994]
[1730822270791,3.61769,2440.0,2439.7,0.40994]
[1730822270986,5.313,2440.0,2439.7,3.60867249]
[1730822271199,5.7229,2440.0,2439.7,3.60867249]
[1730822271400,5.313,2440.0,2439.7,3.19873249]
[1730822271598,5.313,2440.0,2439.8,0.40992]
[1730822272096,40.8,2440.3,2439.9,3.19873249]
[1730822272295,5.70474,2440.4,2440.0,0.40988]
[1730822272592,0.40985,2440.3,2440.0,2.0735]
[1730822272799,0.40986,2440.2,2440.0,2.0735]
[1730822272999,41.20985,2440.3,2440.0,2.48339]
[1730822273499,40.8,2440.3,2440.1,0.40986]
[1730822273795,41.20984,2440.3,2440.0,2.48338]
[1730822274502,40.8,2440.3,2440.1,0.40987]
[1730822275803,40.8,2440.3,2440.0,2.0735]
[1730822276095,40.8,2440.3,2440.1,0.40988]
[1730822276304,40.8,2440.3,2440.0,2.0735]
[1730822276494,40.8,2440.3,2440.1,0.40986]
[1730822276696,5.2949,2440.4,2440.1,0.40986]
[1730822276891,5.2949,2440.4,2440.0,2.0735]
[1730822277099,5.2949,2440.4,2440.2,0.40984]
[1730822277403,44.0078,2440.7,2440.5,0.4098]
[1730822277705,44.0078,2440.7,2440.4,3.19873249]
[1730822277906,3.2078,2441.0,2440.5,1.0364]
[1730822278202,3.2078,2441.0,2440.6,3.19873249]
[1730822278397,3.2078,2441.0,2440.9,0.40974]
[1730822279601,40.8,2441.1,2441.0,0.40972]
[1730822279812,0.40965,2441.5,2441.1,0.4097]
[1730822280003,0.40965,2441.5,2441.0,4.0968]
[1730822280004,1.0866,2441.6,2440.9,3.19873249]
[1730822280304,40.8,2441.5,2441.1,3.19873249]
[1730822280506,40.8,2441.5,2441.3,0.40967]
[1730822280700,41.20965,2441.5,2441.2,1.0942]
[1730822280902,40.8,2441.5,2441.1,3.19873249]
[1730822281102,40.8,2441.5,2441.1,0.4097]
[1730822281103,3.2078,2441.4,2441.1,0.4097]
[1730822281602,40.8,2441.5,2441.2,0.40968]
[1730822281904,1.49623,2441.6,2441.2,4.34517405]
[1730822282105,1.0866,2441.6,2441.2,4.34517405]
[1730822282304,0.40969,2441.2,2440.8,0.40975]
[1730822282512,3.2078,2441.3,2440.7,1.60299755]
[1730822282698,1.0718,2441.1,2440.7,1.60299755]
[1730822283003,1.0718,2441.1,2440.6,1.60299755]
[1730822283004,0.40974,2440.9,2440.6,1.60299755]
[1730822283708,0.40975,2440.9,2440.6,1.60299755]
[1730822283902,4.69223,2441.0,2440.6,2.01278755]
[1730822284107,3.2078,2441.0,2440.9,0.40974]
[1730822284300,3.2078,2441.0,2440.9,4.34523405]
[1730822284907,3.2078,2441.0,2440.8,0.40975]
[1730822285103,3.2078,2441.0,2440.7,2.45037]
[1730822285306,3.2078,2441.0,2440.7,2.45036]
[1730822285509,3.2078,2441.0,2440.8,0.40975]
[1730822285710,3.2078,2441.0,2440.7,2.0406]
[1730822285908,3.2078,2441.0,2440.7,2.45037]
[1730822286415,3.2078,2441.0,2440.7,2.0406]
[1730822286716,3.2078,2441.0,2440.7,2.45037]
[1730822287107,3.2078,2441.0,2440.6,1.60299755]
[1730822287321,1.46425,2440.9,2440.6,1.60299755]
[1730822287508,1.0545,2440.9,2440.6,2.01277755]
[1730822287708,3.2078,2441.0,2440.6,3.93549405]
[1730822288311,3.61753,2441.0,2440.7,0.40977]
[1730822288519,0.40975,2440.9,2440.6,4.34527405]
[1730822288711,3.2078,2441.0,2440.6,4.34527405]
[1730822288911,0.40976,2440.8,2440.4,3.2078]
[1730822289211,3.61753,2441.0,2440.7,0.40977]
[1730822289511,3.2078,2441.0,2440.7,0.40976]
[1730822289717,3.2078,2441.0,2440.8,0.40975]
[1730822289909,3.2078,2441.0,2440.6,3.93549405]
[1730822290216,3.61753,2441.0,2440.7,0.40977]
[1730822290519,3.2078,2441.0,2440.4,1.0775]
[1730822290813,0.40975,2440.9,2440.6,0.40979]
[1730822291610,3.2078,2441.0,2440.3,8.19959405]
[1730822291806,1.0718,2441.1,2440.3,8.19959405]
[1730822291807,1.0718,2441.1,2440.9,3.93549405]
[1730822292003,3.2078,2441.3,2441.2,0.40969]
[1730822292218,3.2078,2441.3,2441.1,0.40969]
[1730822292411,3.61748,2441.3,2441.0,2.1014]
[1730822292616,3.61748,2441.3,2441.0,2.51112]
[1730822293009,3.2078,2441.3,2441.0,2.1014]
[1730822293213,1.0545,2441.4,2441.3,0.40967]
[1730822293511,0.9893,2441.5,2441.2,3.93549405]
[1730822293710,1.39895,2441.5,2441.2,4.34517405]
[1730822293916,0.9893,2441.5,2441.4,0.40966]
[1730822294112,0.9893,2441.5,2441.3,0.40967]
[1730822294918,44.0078,2441.7,2441.2,3.93549405]
[1730822295116,44.0078,2441.7,2441.5,0.40963]
[1730822295313,44.0078,2441.7,2441.2,3.93549405]
[1730822295518,3.2078,2441.7,2441.5,0.40964]
[1730822296219,0.4096,2441.8,2441.5,0.40964]
[1730822296719,0.40963,2441.6,2441.3,0.40966]
[1730822296918,0.40965,2441.5,2441.2,0.40969]
[1730822297118,1.0357,2441.4,2441.0,2.1014]
[1730822297415,1.44536,2441.4,2441.1,0.4097]
[1730822297622,1.0357,2441.4,2441.0,2.1014]
[1730822297811,1.0357,2441.4,2441.0,1.0929]
[1730822297812,1.0743,2441.3,2441.0,1.0929]
[1730822298011,1.48398,2441.3,2441.0,1.50261]
[1730822298228,1.48398,2441.3,2441.1,0.40971]
[1730822298411,1.48398,2441.3,2441.0,1.0929]
[1730822298412,1.0743,2441.3,2441.0,1.0929]
[1730822299114,1.48398,2441.3,2441.0,1.0929]
[1730822299314,1.0743,2441.3,2440.7,4.2881]
[1730822299514,1.0743,2441.3,2440.7,0.40976]
[1730822299515,0.40971,2441.1,2440.7,0.40976]